bitfinex-derivatives/quotes_BNBF0:USTF0_20250709
["timestamp","ask_amount","ask_price","bid_price","bid_amount"]
[1752072611198,1.69075688,661.01,660.26,2.458]
[1752072611492,1.69075688,661.01,660.25,0.26335406]
[1752072613197,1.69075688,660.98,660.28,1.69219067]
[1752072613394,1.69075688,660.97,660.29,1.69219067]
[1752072613997,1.69075688,661.0,660.25,0.26335406]
[1752072614295,1.69075688,660.99,660.26,1.69219067]
[1752072614595,1.69075688,661.0,660.26,1.69219067]
[1752072614799,1.69075688,661.0,660.27,1.815]
[1752072615298,1.69075688,661.0,660.28,1.69219067]
[1752072615496,1.69075688,661.07,660.35,1.69219067]
[1752072616302,1.69075688,661.07,660.36,1.69219067]
[1752072617302,1.69075688,661.06,660.37,1.69219067]
[1752072617802,1.69075688,661.06,660.38,1.69219067]
[1752072618102,1.69075688,661.05,660.39,1.69219067]
[1752072618300,1.69075688,661.05,660.38,1.69219067]
[1752072619206,1.69075688,661.05,660.39,1.69219067]
[1752072619406,1.69075688,661.04,660.39,1.69219067]
[1752072619702,7.79773107,662.24,660.27,1.815]
[1752072619703,1.69075688,661.14,660.27,1.815]
[1752072620205,1.69075688,661.13,660.27,1.815]
[1752072620903,1.69075688,661.11,660.27,1.815]
[1752072621602,0.98981154,661.34,660.27,1.815]
[1752072621603,1.69075688,661.07,660.27,1.815]
[1752072622003,1.69328141,661.07,660.27,1.815]
[1752072622507,1.69328141,661.06,660.27,1.815]
[1752072622702,1.69328141,661.08,660.27,1.815]
[1752072622904,1.69328141,661.07,660.27,1.815]
[1752072623103,1.69328141,660.94,660.39,1.69689747]
[1752072623606,1.69328141,660.89,660.34,1.69689747]
[1752072624403,1.69328141,660.88,660.35,1.69689747]
[1752072624904,1.69328141,660.89,660.34,1.69689747]
[1752072625208,1.69328141,660.89,660.35,1.69689747]
[1752072625603,1.69328141,660.94,660.27,3.51189747]
[1752072625807,1.69328141,660.98,660.27,1.815]
[1752072626104,1.69328141,660.97,660.27,1.815]
[1752072626302,1.69328141,661.02,660.27,1.815]
[1752072626506,1.69328141,661.02,660.29,1.69689747]
[1752072626704,1.69328141,661.06,660.29,1.69689747]
[1752072627004,1.69328141,661.06,660.3,1.69689747]
[1752072627307,1.69328141,661.03,660.33,1.69689747]
[1752072627508,2.22343902,661.22,660.27,1.815]
[1752072627509,1.69328141,661.07,660.44,1.69689747]
[1752072627809,1.69328141,661.08,660.45,1.69689747]
[1752072628110,1.69328141,661.11,660.47,1.69689747]
[1752072628605,1.69328141,661.12,660.47,1.69689747]
[1752072628905,1.69328141,661.15,660.41,1.69689747]
[1752072629106,1.69328141,661.14,660.41,1.69689747]
[1752072629305,0.99004104,661.35,660.4,1.69689747]
[1752072629306,1.69328141,661.15,660.4,1.69689747]
[1752072629509,1.69328141,661.15,660.41,1.69689747]
[1752072629710,1.69328141,661.13,660.43,1.69689747]
[1752072629910,1.69328141,661.13,660.27,1.815]
[1752072629911,1.69328141,661.21,660.51,1.69689747]
[1752072630310,1.69328141,661.21,660.5,1.69689747]
[1752072630510,1.69328141,661.22,660.5,1.69689747]
[1752072631512,1.69328141,661.23,660.49,1.69689747]
[1752072632410,1.69328141,661.23,660.5,1.69689747]
[1752072633911,1.69328141,661.24,660.49,1.69689747]
[1752072634112,1.69328141,661.17,660.59,1.69689747]
[1752072634317,1.69328141,661.18,660.58,1.69689747]
[1752072634914,1.69328141,661.19,660.59,1.69689747]
[1752072635318,1.69328141,661.18,660.6,1.69689747]
[1752072635515,1.69328141,661.19,660.6,1.69689747]
[1752072635713,1.69328141,661.19,660.59,1.69689747]
[1752072636416,1.69328141,661.2,660.6,1.69689747]
[1752072636716,1.69328141,661.21,660.6,1.69689747]
[1752072637216,1.69328141,661.21,660.58,1.69689747]
[1752072637419,1.69328141,661.22,660.57,1.69689747]
[1752072637915,1.69328141,661.22,660.28,3.34847439]
[1752072637916,1.69328141,661.23,660.58,1.69689747]
[1752072638423,1.69328141,661.24,660.57,1.69689747]
[1752072638620,1.69328141,661.22,660.59,1.69689747]
[1752072638816,1.69328141,661.25,660.61,1.69689747]
[1752072639419,1.69328141,661.26,660.61,1.69689747]
[1752072640315,1.69328141,661.27,660.6,1.69689747]
[1752072640619,1.69328141,661.28,660.62,1.69689747]
[1752072641319,1.69328141,661.29,660.61,1.69689747]
[1752072642419,1.69328141,661.29,660.6,1.69689747]
[1752072642916,1.69328141,661.31,660.57,1.69689747]
[1752072643317,1.69328141,661.32,660.57,1.69689747]
[1752072644522,1.69328141,661.38,660.62,1.69689747]
[1752072645319,1.69328141,661.39,660.61,1.69689747]
[1752072646422,1.69328141,661.4,660.61,1.69689747]
[1752072647223,1.69328141,661.4,660.6,1.69689747]
[1752072647623,1.69328141,661.41,660.6,1.69689747]
[1752072647825,1.69328141,661.41,660.61,1.69689747]
[1752072648021,1.69328141,661.41,660.6,1.69689747]
[1752072648521,1.69328141,661.41,660.59,1.69689747]
[1752072648725,1.69328141,661.42,660.6,1.69689747]
[1752072649127,1.69328141,661.42,660.59,1.69689747]
[1752072650425,1.69328141,661.42,660.58,1.69689747]
[1752072651330,1.69328141,661.44,660.55,1.69689747]
[1752072652325,1.69328141,661.44,660.54,1.69689747]
[1752072652725,1.69328141,661.42,660.57,1.69689747]
[1752072653130,1.69328141,661.43,660.57,1.69689747]
[1752072653327,1.69328141,661.43,660.56,1.69689747]
[1752072653728,1.69328141,661.43,660.57,3.33489747]
[1752072654831,1.69328141,661.43,660.58,1.69689747]
[1752072655628,1.69328141,661.49,660.64,1.69689747]
[1752072656234,1.69328141,661.5,660.63,1.69689747]
[1752072656830,1.69328141,661.49,660.63,1.69689747]
[1752072657231,1.69328141,661.5,660.63,1.69689747]
[1752072657533,1.69328141,661.5,660.62,1.69689747]
[1752072659433,1.69328141,661.5,660.61,1.69689747]
[1752072660240,1.69328141,661.47,660.67,1.69689747]
[1752072661037,0.98618226,661.56,660.57,3.87031626]
[1752072661237,1.68525298,661.46,660.67,1.68890453]
[1752072661440,1.68525298,661.47,660.67,1.68890453]
[1752072663242,1.68525298,661.47,660.66,1.68890453]
[1752072664847,1.68525298,661.57,660.57,1.638]
[1752072665048,1.68525298,661.66,660.61,1.68890453]
[1752072665742,1.68525298,661.67,660.62,1.68890453]
[1752072666243,1.68525298,661.68,660.61,1.68890453]
[1752072667348,1.68525298,661.68,660.6,1.68890453]
[1752072667747,1.68525298,661.68,660.61,1.68890453]
[1752072668146,1.68525298,661.69,660.62,1.68890453]
[1752072668343,1.68525298,661.69,660.61,1.68890453]
[1752072668844,1.68525298,661.7,660.61,1.68890453]
[1752072669647,1.68525298,661.7,660.42,2.23231626]
[1752072669648,1.68525298,661.65,660.68,1.68890453]
[1752072669846,1.68525298,661.64,660.7,1.68890453]
[1752072670150,1.68525298,661.7,660.74,1.68890453]
[1752072671249,1.68525298,661.7,660.73,1.68890453]
[1752072671550,1.68525298,661.7,660.74,1.829]
[1752072672653,1.68525298,661.69,660.75,1.68890453]
[1752072675150,1.68525298,661.68,660.76,1.68890453]
[1752072677257,1.68525298,661.69,660.74,3.51790453]
[1752072677456,1.68525298,661.69,660.75,1.68890453]
[1752072681358,1.68525298,661.68,660.75,1.68890453]
[1752072682161,1.68525298,661.7,660.74,1.829]
[1752072682356,1.68525298,661.71,660.75,1.68890453]
[1752072682856,1.68525298,661.71,660.74,3.51790453]
[1752072683257,1.68525298,661.7,660.74,1.829]
[1752072683461,1.68525298,661.7,660.74,3.51790453]
[1752072684461,1.68525298,661.78,660.74,1.829]
[1752072684761,1.68525298,661.82,660.74,1.829]
[1752072685357,1.68525298,661.81,660.74,1.829]
[1752072686358,1.68525298,661.79,660.74,1.829]
[1752072686656,1.68525298,661.8,660.74,1.829]
[1752072686862,1.68525298,661.79,660.74,1.829]
[1752072687259,1.68525298,661.8,660.74,1.829]
[1752072687463,1.68525298,661.79,660.74,1.829]
[1752072688363,1.68525298,661.78,660.74,1.829]
[1752072691660,1.68525298,661.68,660.87,1.68890453]
[1752072691867,5.56980791,662.47,660.84,1.68890453]
[1752072691868,1.68525298,661.7,660.84,1.68890453]
[1752072692261,1.68525298,661.7,660.85,1.68890453]
[1752072693861,1.68525298,661.69,660.85,1.68890453]
[1752072695263,1.68525298,661.69,660.87,1.68890453]
[1752072695463,1.68525298,661.68,660.87,1.68890453]
[1752072696364,1.68525298,661.68,660.74,4.06131626]
[1752072696365,1.68525298,661.68,660.88,1.68890453]
[1752072696969,1.68525298,661.69,660.89,1.68890453]
[1752072697267,1.68525298,661.68,660.89,1.68890453]
[1752072698370,1.68525298,661.68,660.9,1.68890453]
[1752072699270,1.68525298,661.68,660.91,1.68890453]
[1752072699671,1.68525298,661.67,660.91,1.68890453]
[1752072699968,1.68525298,661.68,660.91,1.68890453]
[1752072700272,1.68525298,661.67,660.92,1.68890453]
[1752072700773,1.68525298,661.68,660.91,1.68890453]
[1752072701367,1.68525298,661.68,660.92,1.68890453]
[1752072701772,1.68525298,661.66,660.94,1.68890453]
[1752072702372,1.68525298,661.66,660.95,1.68890453]
[1752072702672,1.68525298,661.66,660.94,1.68890453]
[1752072703369,1.68525298,661.65,660.95,1.68890453]
[1752072704071,1.68525298,661.67,660.93,1.68890453]
[1752072704573,1.68525298,661.66,660.94,1.68890453]
[1752072705370,1.68525298,661.66,660.95,1.68890453]
[1752072705573,1.68525298,661.66,660.94,1.68890453]
[1752072705770,1.68525298,661.66,660.95,1.68890453]
[1752072708171,1.68525298,661.66,660.96,1.68890453]
[1752072708374,1.68525298,661.65,660.96,1.68890453]
[1752072708675,1.68525298,661.66,660.94,1.68890453]
[1752072709278,1.68525298,661.66,660.95,1.68890453]
[1752072709975,1.68525298,661.66,660.96,1.68890453]
[1752072711078,1.68525298,661.69,661.0,1.68890453]
[1752072711477,1.68525298,661.68,661.0,1.68890453]
[1752072712575,1.68525298,661.68,661.01,1.68890453]
[1752072713575,1.68525298,661.67,661.03,1.68890453]
[1752072714076,1.68525298,661.67,661.02,1.68890453]
[1752072714279,1.68525298,661.66,661.03,1.68890453]
[1752072715380,1.68525298,661.66,661.04,1.68890453]
[1752072715579,1.68525298,661.65,661.05,1.68890453]
[1752072717278,1.68525298,661.64,661.06,1.68890453]
[1752072717476,1.68525298,661.64,661.06,3.74790453]
[1752072718380,1.68525298,661.62,661.08,1.68890453]
[1752072719377,1.68525298,661.61,661.09,1.68890453]
[1752072721577,1.68525298,661.6,661.1,1.68890453]
[1752072722081,1.68525298,661.61,661.09,1.68890453]
[1752072722278,1.68525298,661.6,661.1,1.68890453]
[1752072722881,1.68525298,661.6,661.11,1.68890453]
[1752072723281,1.68525298,661.59,661.12,1.68890453]
[1752072723879,1.68525298,661.58,661.12,1.68890453]
[1752072724184,1.68525298,661.57,661.13,1.68890453]
[1752072724578,1.68525298,661.57,661.14,1.68890453]
[1752072724982,1.68525298,661.61,661.08,1.68890453]
[1752072725282,1.68525298,661.6,661.09,1.68890453]
[1752072727185,1.68525298,661.6,661.1,1.68890453]
[1752072728184,1.68525298,661.59,661.1,1.68890453]
[1752072732285,1.68525298,661.58,661.1,1.68890453]
[1752072732586,1.68525298,661.59,661.09,1.68890453]
[1752072734984,1.68525298,661.57,661.12,1.68890453]
[1752072736884,1.68525298,661.56,661.12,1.68890453]
[1752072737188,1.68525298,661.56,660.39,5.58079065]
[1752072737189,1.68525298,661.59,661.09,1.68890453]
[1752072738584,1.68525298,661.59,661.1,2.529]
[1752072740184,1.68525298,661.58,661.1,2.529]
[1752072742392,1.68525298,661.58,661.1,4.21790453]
[1752072742992,1.68525298,661.57,661.1,4.21790453]
[1752072743592,1.68525298,661.58,661.1,2.529]
[1752072747091,1.68525298,661.56,661.12,1.68890453]
[1752072747691,1.68525298,661.56,661.11,1.68890453]
[1752072748690,1.68525298,661.55,661.13,1.68890453]
[1752072748893,0.992185,661.68,661.1,2.529]
[1752072748894,1.68525298,661.43,661.1,2.529]
[1752072749893,1.68525298,661.43,661.0,1.68890453]
[1752072750393,1.68525298,661.44,660.99,1.68890453]
[1752072751193,1.68525298,661.45,660.99,1.68890453]
[1752072752089,1.68525298,661.44,661.0,2.468]
[1752072752290,1.68525298,661.45,661.0,2.468]
[1752072752695,1.68525298,661.44,661.0,2.468]
[1752072752897,1.68525298,661.38,661.0,2.468]
[1752072753391,1.68525298,661.39,661.0,2.468]
[1752072754391,1.68525298,661.4,661.0,2.468]
[1752072754691,1.68525298,661.41,661.0,2.468]
[1752072755298,1.68525298,661.42,661.0,2.468]
[1752072755793,1.68525298,661.47,661.0,2.468]
[1752072755994,1.68525298,661.48,661.0,2.468]
[1752072756296,1.68525298,661.49,661.0,2.468]
[1752072758295,1.68525298,661.5,661.0,2.468]
[1752072760199,1.68525298,661.51,661.0,2.468]
[1752072762196,1.68525298,661.48,661.0,2.468]
[1752072763197,1.68525298,661.45,661.0,2.468]
[1752072764504,1.68525298,661.45,660.9,1.68890453]
[1752072765102,1.68525298,661.46,660.9,1.68890453]
[1752072766205,1.68525298,661.46,660.89,1.68890453]
[1752072766404,1.68525298,661.46,660.9,1.68890453]
[1752072767701,1.68525298,661.46,660.91,1.723]
[1752072768100,1.68525298,661.49,660.91,1.723]
[1752072769508,1.68525298,661.53,660.92,1.68890453]
[1752072771006,1.68525298,661.53,660.91,3.41190453]
[1752072771508,1.68525298,661.53,660.92,1.68890453]
[1752072775107,1.68525298,661.55,660.91,1.723]
[1752072775406,1.68525298,661.59,660.91,1.723]
[1752072776513,1.68525298,661.62,660.91,1.723]
[1752072776909,1.68525298,661.61,660.91,1.723]
[1752072780919,1.68525298,661.6,660.91,1.723]
[1752072781322,1.68525298,661.61,660.91,1.723]
[1752072781820,1.68525298,661.6,660.91,1.723]
[1752072782022,1.68525298,661.61,660.91,1.723]
[1752072782319,1.68525298,661.6,660.91,1.723]
[1752072784928,1.68525298,661.59,660.91,1.723]
[1752072785430,1.68525298,661.54,660.96,1.68890453]
[1752072785930,1.68525298,661.54,660.97,1.68890453]
[1752072786427,1.68525298,661.55,660.96,1.68890453]
[1752072786730,1.68525298,661.54,660.96,1.68890453]
[1752072789329,1.68525298,661.54,660.97,1.68890453]
[1752072789527,1.68525298,661.52,660.99,1.68890453]
[1752072791230,1.68525298,661.52,661.0,1.68890453]
[1752072792134,1.68525298,661.51,661.0,1.68890453]
[1752072792534,1.68525298,661.53,660.97,1.68890453]
[1752072796231,1.68525298,661.53,660.98,1.68890453]
[1752072797436,1.68525298,661.52,660.99,1.68890453]
[1752072798840,1.68525298,661.54,660.95,1.68890453]
[1752072799338,1.68525298,661.54,660.96,1.68890453]
[1752072799740,1.68525298,661.54,660.95,1.68890453]
[1752072800141,1.68525298,661.54,660.96,1.68890453]
[1752072800638,1.68525298,661.53,660.95,1.68890453]
[1752072802037,1.68525298,661.53,660.96,2.218]
[1752072802238,1.68525298,661.55,660.96,2.218]
[1752072804340,1.68525298,661.56,660.96,2.218]
[1752072805645,1.68525298,661.57,660.96,2.218]
[1752072806149,1.68525298,661.56,660.96,2.218]
[1752072808248,1.68525298,661.55,660.96,2.218]
[1752072808853,1.68525298,661.54,660.96,2.218]
[1752072809051,1.68525298,661.55,660.96,2.218]
[1752072812052,1.68525298,661.54,660.96,2.218]
[1752072812857,0.99152006,661.7,660.96,2.218]
[1752072813057,1.69440178,661.53,660.96,2.218]
[1752072814055,1.69440178,661.52,660.96,2.218]
[1752072814254,1.69440178,661.51,660.96,2.218]
[1752072815154,1.69440178,661.51,660.96,3.91586347]
[1752072815556,1.69440178,661.49,660.99,1.69786347]
[1752072815960,1.69440178,661.5,660.96,3.91586347]
[1752072816160,1.69440178,661.5,660.97,1.69786347]
[1752072818660,1.69440178,661.49,660.99,1.69786347]
[1752072820258,1.69440178,661.48,660.99,1.69786347]
[1752072821561,1.69440178,661.48,661.0,1.69786347]
[1752072823361,1.69440178,661.47,661.0,1.69786347]
[1752072824158,1.69440178,661.47,660.96,2.218]
[1752072824159,1.69440178,661.47,661.01,1.69786347]
[1752072824460,1.69440178,661.46,661.01,1.69786347]
[1752072825261,1.69440178,661.46,661.02,1.69786347]
[1752072825763,1.69440178,661.43,661.06,1.69786347]
[1752072828664,1.69440178,661.42,661.07,1.69786347]
[1752072829466,1.69440178,661.42,661.08,1.69786347]
[1752072830264,1.69440178,661.41,661.08,1.69786347]
[1752072830563,1.69440178,661.42,661.07,1.69786347]
[1752072832563,2.22343902,661.52,661.07,1.69786347]
[1752072832564,1.69440178,661.41,661.07,1.69786347]
[1752072832765,1.69440178,661.42,661.07,1.69786347]
[1752072833267,1.69440178,661.41,661.07,1.69786347]
[1752072834972,1.69440178,661.41,661.06,1.69786347]
[1752072835171,1.69440178,661.41,661.07,1.69786347]
[1752072835869,1.69440178,661.42,661.07,1.69786347]
[1752072838072,1.69440178,661.41,661.07,1.69786347]
[1752072838473,1.69440178,661.42,661.07,1.69786347]
[1752072839369,1.69440178,661.42,661.06,1.69786347]
[1752072840473,1.69440178,661.41,661.07,1.69786347]
[1752072840772,1.69440178,661.41,661.08,1.69786347]
[1752072841168,1.69440178,661.41,661.07,1.69786347]
[1752072841370,1.69440178,661.44,661.03,1.69786347]
[1752072841572,1.69440178,661.43,661.02,1.69786347]
[1752072841772,1.69440178,661.44,661.03,1.69786347]
[1752072843575,0.99305185,661.57,660.96,2.218]
[1752072843576,1.69440178,661.38,660.97,1.69786347]
[1752072843976,1.69440178,661.38,660.96,3.91586347]
[1752072844177,1.69440178,661.39,660.96,3.91586347]
[1752072844477,1.69440178,661.38,660.96,3.91586347]
[1752072845177,1.69440178,661.4,660.96,2.218]
[1752072846180,1.69440178,661.41,660.96,2.218]
[1752072849181,1.69440178,661.42,660.96,2.218]
[1752072849582,1.69440178,661.41,660.96,2.218]
[1752072850684,1.69440178,661.4,660.96,2.218]
[1752072854087,1.69440178,661.4,660.93,1.69786347]
[1752072855087,1.69440178,661.39,660.95,1.69786347]
[1752072855683,1.69440178,661.39,660.94,1.69786347]
[1752072855887,1.69440178,661.39,660.58,0.26308926]
[1752072855888,1.69440178,661.46,660.84,1.69786347]
[1752072856083,1.69440178,661.49,660.86,1.69786347]
[1752072856285,1.69440178,661.48,660.87,1.69786347]
[1752072856489,1.69440178,661.45,660.93,1.69786347]
[1752072856785,1.69440178,661.45,660.79,2.23231626]
[1752072856786,1.69440178,661.41,661.0,1.69786347]
[1752072856989,1.69440178,661.42,660.98,1.69786347]
[1752072857286,1.69440178,661.42,660.58,0.26308926]
[1752072857287,1.69440178,661.42,660.97,1.69786347]
[1752072857484,1.69440178,661.42,660.99,2.384]
[1752072859492,1.69440178,661.54,661.08,1.69786347]
[1752072859787,1.69440178,661.7,661.24,1.69786347]
[1752072860187,1.69440178,661.72,661.22,1.69786347]
[1752072861290,1.69440178,661.74,661.2,1.69786347]
[1752072861792,1.69440178,661.74,661.19,1.69786347]
[1752072861991,1.69440178,661.75,661.17,1.69786347]
[1752072862193,1.69440178,661.76,661.16,1.69786347]
[1752072863093,1.69440178,661.56,660.99,2.384]
[1752072863393,1.69440178,661.55,660.99,2.384]
[1752072863595,1.69440178,661.56,660.99,2.384]
[1752072864093,1.69440178,661.55,660.99,2.384]
[1752072866997,1.69440178,661.57,660.99,2.384]
[1752072867600,1.69440178,661.56,660.99,2.384]
[1752072872404,1.69440178,661.55,660.99,2.384]
[1752072875104,1.69440178,661.56,660.99,2.384]
[1752072876907,1.69440178,661.54,661.01,1.69786347]
[1752072877311,1.69440178,661.53,661.02,1.69786347]
[1752072878506,1.69440178,661.54,661.02,1.69786347]
[1752072878707,1.69440178,661.55,661.0,1.69786347]
[1752072879208,1.69440178,661.55,661.01,1.69786347]
[1752072879407,1.69440178,661.55,661.0,1.69786347]
[1752072880213,1.69440178,661.55,661.01,1.69786347]
[1752072880614,1.69440178,661.55,661.0,1.69786347]
[1752072883715,1.69440178,661.55,661.01,1.69786347]
[1752072885020,1.69440178,661.55,661.0,1.69786347]
[1752072885620,2.22343902,661.67,660.99,2.384]
[1752072885818,2.22343902,661.67,661.01,1.69575691]
[1752072885819,1.69269565,661.55,661.01,1.69575691]
[1752072886221,1.69269565,661.55,660.99,2.384]
[1752072886222,1.69269565,661.57,660.99,2.384]
[1752072887520,1.69269565,661.58,660.99,2.384]
[1752072888620,1.69269565,661.57,660.99,2.384]
[1752072889521,1.69269565,661.58,660.99,2.384]
[1752072890327,1.69269565,661.57,660.99,2.384]
[1752072891122,1.69269565,661.58,660.99,2.384]
[1752072891429,0.98927888,661.72,660.99,2.384]
[1752072891623,1.69293911,661.58,660.99,2.384]
[1752072892522,1.69293911,661.58,660.96,1.69573025]
[1752072894421,1.69293911,661.6,660.92,1.69573025]
[1752072894826,1.69293911,661.53,660.85,1.69573025]
[1752072895224,1.69293911,661.53,660.86,2.411]
[1752072895524,1.69293911,661.46,660.86,2.411]
[1752072895824,1.69293911,661.45,660.86,2.411]
[1752072897628,2.22343902,661.6,660.86,2.411]
[1752072897829,1.69229588,661.45,660.86,2.411]
[1752072898425,1.69229588,661.44,660.86,2.411]
[1752072899224,1.69229588,661.43,660.86,2.411]
[1752072900332,1.69229588,661.42,660.86,4.10678332]
[1752072900531,1.69229588,661.43,660.86,2.411]
[1752072902235,1.69229588,661.44,660.86,2.411]
[1752072902435,1.69229588,661.52,660.86,2.411]
[1752072902636,1.69229588,661.57,660.86,2.411]
[1752072902836,7.79773107,662.42,660.86,2.411]
[1752072902837,1.69229588,661.69,660.86,4.10678332]
[1752072903033,1.69229588,661.69,660.86,2.411]
[1752072903240,1.69229588,661.69,660.86,4.10678332]
[1752072904536,1.69287998,661.69,660.86,2.411]
[1752072904739,1.69287998,661.69,660.86,4.10591512]
[1752072906140,1.69287998,661.67,660.89,1.69491512]
[1752072908640,1.69287998,661.66,660.91,1.69491512]
[1752072909741,1.69287998,661.64,660.95,1.69491512]
[1752072909943,1.69287998,661.62,660.97,1.69491512]
[1752072911537,1.69287998,661.61,660.97,1.69491512]
[1752072912042,1.69287998,661.62,660.97,1.69491512]
[1752072912740,1.69287998,661.58,661.02,1.69491512]
[1752072913843,1.69287998,661.58,661.01,1.69491512]
[1752072914739,1.69287998,661.58,661.02,1.69491512]
[1752072914944,2.22343902,661.71,660.89,2.23231626]
[1752072915144,1.69293621,661.58,661.01,1.69531776]
[1752072916345,1.69293621,661.57,661.01,1.69531776]
[1752072920446,1.69293621,661.56,661.03,1.69531776]
[1752072921343,1.69293621,661.55,661.04,1.69531776]
[1752072921548,1.69293621,661.54,661.05,1.69531776]
[1752072922144,1.69293621,661.53,661.07,1.69531776]
[1752072922646,1.69293621,661.53,661.06,1.69531776]
[1752072923342,1.69293621,661.58,660.98,1.69531776]
[1752072929354,1.69293621,661.59,660.98,1.69531776]
[1752072930954,1.69293621,661.54,661.04,1.69531776]
[1752072933955,1.69293621,661.55,661.04,1.69531776]
[1752072934157,1.69293621,661.55,661.03,1.69531776]
[1752072935757,1.69425604,661.55,661.03,1.69696205]
[1752072938160,1.69425604,661.55,661.04,1.69696205]
[1752072938361,1.69425604,661.55,661.03,1.69696205]
[1752072938759,1.69425604,661.55,661.04,1.69696205]
[1752072939758,1.69425604,661.54,661.04,1.69696205]
[1752072940358,1.69425604,661.54,661.05,1.69696205]
[1752072943859,1.69425604,661.53,661.06,1.69696205]
[1752072944560,1.69425604,661.53,661.07,1.69696205]
[1752072947562,1.69425604,661.53,661.08,1.69696205]
[1752072947760,1.69425604,661.54,661.08,1.69696205]
[1752072948662,1.69425604,661.53,661.08,1.69696205]
[1752072950262,1.69425604,661.53,661.07,1.69696205]
[1752072952065,1.69425604,661.53,661.08,1.69696205]
[1752072952267,1.69425604,661.53,661.07,1.69696205]
[1752072952663,1.69425604,661.54,661.08,1.69696205]
[1752072953065,1.69425604,661.53,661.08,1.69696205]
[1752072953264,1.69425604,661.54,661.08,1.69696205]
[1752072954569,1.69425604,661.54,661.07,1.69696205]
[1752072955067,1.69425604,661.54,661.08,1.69696205]
[1752072956068,1.69425604,661.6,660.98,1.69696205]
[1752072956267,1.69425604,661.66,661.04,1.69696205]
[1752072956569,1.69425604,661.66,660.88,2.23231626]
[1752072956570,1.69425604,661.67,661.05,1.69696205]
[1752072956768,1.69425604,661.66,661.05,1.69696205]
[1752072956971,1.69425604,661.66,661.06,2.078]
[1752072957167,1.69425604,661.67,661.06,2.078]
[1752072957465,1.69425604,661.66,661.06,2.078]
[1752072957871,1.69425604,661.66,661.06,3.77496205]
[1752072959271,1.69425604,661.66,661.07,1.69696205]
[1752072961468,1.69425604,661.65,661.08,1.69696205]
[1752072961971,1.69425604,661.65,661.07,1.69696205]
[1752072962170,1.69425604,661.64,661.09,1.69696205]
[1752072963372,1.69425604,661.64,661.08,1.69696205]
[1752072963970,1.69425604,661.64,661.06,2.078]
[1752072963971,1.69425604,661.64,661.09,1.69696205]
[1752072964170,1.69425604,661.64,661.08,1.69696205]
[1752072965174,1.69425604,661.65,661.08,1.69696205]
[1752072965672,1.69425604,661.59,661.17,1.69696205]
[1752072965974,2.22343902,661.7,661.06,2.078]
[1752072965975,1.69425604,661.58,661.18,1.69696205]
[1752072966175,1.69425604,661.58,661.17,1.69696205]
[1752072966376,1.69425604,661.59,661.17,1.69696205]
[1752072969774,1.69425604,661.68,661.06,2.078]
[1752072970174,1.69425604,661.69,661.06,2.078]
[1752072970378,1.69425604,661.66,661.1,1.69696205]
[1752072970572,1.69425604,661.67,661.11,1.69696205]
[1752072970772,1.69425604,661.83,661.29,1.69696205]
[1752072970974,1.69425604,662.01,661.36,1.69696205]
[1752072971175,5.56980791,663.17,660.8,0.26309423]
[1752072971176,1.69425604,662.08,661.44,1.69696205]
[1752072971377,1.69425604,662.08,661.47,1.69696205]
[1752072971679,1.69425604,662.27,661.51,1.69696205]
[1752072972173,1.69425604,662.22,661.55,1.69696205]
[1752072972374,1.69425604,662.16,661.42,1.69696205]
[1752072972575,1.69425604,662.16,661.43,1.69696205]
[1752072972974,1.69425604,662.17,661.43,1.69696205]
[1752072973376,1.69425604,662.21,661.36,1.69696205]
[1752072973575,0.26290541,662.37,660.8,0.26309423]
[1752072973576,1.69425604,662.13,661.44,1.732]
[1752072973880,1.69425604,662.1,661.44,1.732]
[1752072974078,1.69425604,662.12,661.44,1.732]
[1752072974480,1.69425604,662.13,661.44,1.732]
[1752072975380,1.69425604,662.14,661.44,1.732]
[1752072975781,1.69425604,662.15,661.44,1.732]
[1752072975979,1.69425604,662.14,661.44,1.732]
[1752072976182,1.69425604,662.15,661.44,1.732]
[1752072976479,1.69425604,662.21,661.44,1.732]
[1752072978385,1.69425604,662.23,661.44,1.732]
[1752072979581,1.69425604,662.24,661.44,1.732]
[1752072979783,1.69425604,662.17,661.44,1.732]
[1752072980383,1.69425604,662.18,661.44,1.732]
[1752072981484,1.69425604,662.17,661.44,1.732]
[1752072984184,1.69425604,662.2,661.44,1.732]
[1752072984385,1.69425604,662.19,661.44,1.732]
[1752072984590,1.69425604,662.2,661.44,1.732]
[1752072985685,1.69425604,662.21,661.44,1.732]
[1752072986688,1.69425604,662.19,661.44,1.732]
[1752072987387,1.69425604,662.16,661.44,1.732]
[1752072988587,1.69425604,662.15,661.44,1.732]
[1752072989591,0.26290739,662.26,661.44,1.732]
[1752072993688,0.26290739,662.26,661.18,1.68408603]
[1752072995293,0.26290739,662.26,661.27,1.68408603]